[Event "*** Titled Tuesday Blitz"]
[Site "Chess.com"]
[Date "2020.10.20"]
[Round "3"]
[White "PavelShkapenko"]
[Black "Rakesh"]
[Result "1-0"]
[WhiteElo "2701"]
[BlackElo "2457"]
[TimeControl "180+1"]
[EndTime "10:27:03 PDT"]
[Termination "PavelShkapenko won by resignation"]

1. e4 {[%clk 0:03:00.9]} 1... c5 {[%clk 0:02:31.4]} 2. c3 {[%clk 0:02:56.6]}
2... Nf6 {[%clk 0:02:27.9]} 3. e5 {[%clk 0:02:56.5]} 3... Nd5 {[%clk 0:02:28.5]}
4. d4 {[%clk 0:02:57.4]} 4... cxd4 {[%clk 0:02:29.4]} 5. cxd4 {[%clk 0:02:57.8]}
5... e6 {[%clk 0:02:30.3]} 6. Nc3 {[%clk 0:02:57.6]} 6... Nxc3 {[%clk
0:02:30.7]} 7. bxc3 {[%clk 0:02:58.5]} 7... Qc7 {[%clk 0:02:31.6]} 8. Bd2 {[%clk
0:02:58.6]} 8... d6 {[%clk 0:02:32.5]} 9. f4 {[%clk 0:02:58.8]} 9... Nc6 {[%clk
0:02:30.1]} 10. Bd3 {[%clk 0:02:54.2]} 10... Be7 {[%clk 0:02:29.9]} 11. Nh3
{[%clk 0:02:52.8]} 11... b6 {[%clk 0:02:27.5]} 12. O-O {[%clk 0:02:52.8]} 12...
Bb7 {[%clk 0:02:26]} 13. Qe2 {[%clk 0:02:42.1]} 13... Rd8 {[%clk 0:02:25.9]} 14.
Rae1 {[%clk 0:02:41.3]} 14... g6 {[%clk 0:02:11.6]} 15. Nf2 {[%clk 0:02:21.1]}
15... d5 {[%clk 0:02:07.6]} 16. Ng4 {[%clk 0:02:11.1]} 16... h5 {[%clk
0:02:04.9]} 17. Nf6+ {[%clk 0:02:10.6]} 17... Bxf6 {[%clk 0:02:03.2]} 18. exf6
{[%clk 0:02:11.2]} 18... Kd7 {[%clk 0:02:02.4]} 19. Bxg6 {[%clk 0:02:09]} 19...
Kc8 {[%clk 0:02:00.6]} 20. Bxh5 {[%clk 0:01:56]} 20... Rdg8 {[%clk 0:01:57.1]}
21. f5 {[%clk 0:01:31.4]} 21... Nd8 {[%clk 0:01:45.7]} 22. Bf4 {[%clk
0:01:28.2]} 22... Qd7 {[%clk 0:01:43.2]} 23. fxe6 {[%clk 0:01:03.5]} 23... Nxe6
{[%clk 0:01:44.1]} 24. Bg3 {[%clk 0:01:03.6]} 24... Re8 {[%clk 0:01:34.7]} 25.
Bg4 {[%clk 0:01:02.5]} 25... Bc6 {[%clk 0:01:27.7]} 26. Qa6+ {[%clk 0:00:59.8]}
26... Qb7 {[%clk 0:01:25.6]} 27. Qxb7+ {[%clk 0:00:59.7]} 27... Kxb7 {[%clk
0:01:26.5]} 28. Bxe6 {[%clk 0:00:59.4]} 28... fxe6 {[%clk 0:01:20.6]} 29. f7
{[%clk 0:00:59.4]} 29... Ref8 {[%clk 0:01:20.8]} 30. Rxe6 {[%clk 0:00:57.2]}
30... Rh7 {[%clk 0:01:19]} 31. Ref6 {[%clk 0:00:53.7]} 31... Bb5 {[%clk
0:01:17.4]} 32. R1f2 {[%clk 0:00:50.1]} 1-0

[Event "*** Titled Tuesday Blitz"]
[Site "Chess.com"]
[Date "2020.10.20"]
[Round "3"]
[White "Quiet_Desperation"]
[Black "Lysiak_Poltorak"]
[Result "1-0"]
[WhiteElo "1826"]
[BlackElo "2330"]
[TimeControl "180+1"]
[EndTime "10:27:05 PDT"]
[Termination "Quiet_Desperation won by resignation"]

1. e4 {[%clk 0:03:00.9]} 1... c5 {[%clk 0:02:58.4]} 2. Nf3 {[%clk 0:03:01.2]}
2... Nc6 {[%clk 0:02:58.6]} 3. d4 {[%clk 0:03:01.1]} 3... cxd4 {[%clk
0:02:59.5]} 4. Nxd4 {[%clk 0:03:01.7]} 4... Nf6 {[%clk 0:02:59.6]} 5. Nc3 {[%clk
0:03:02]} 5... e5 {[%clk 0:02:59.9]} 6. Ndb5 {[%clk 0:03:02.4]} 6... d6 {[%clk
0:03:00.2]} 7. Bg5 {[%clk 0:03:02.3]} 7... a6 {[%clk 0:03:00.4]} 8. Bxf6 {[%clk
0:03:02.6]} 8... gxf6 {[%clk 0:03:00.2]} 9. Na3 {[%clk 0:03:02.8]} 9... b5
{[%clk 0:03:00.8]} 10. Nd5 {[%clk 0:03:03.1]} 10... f5 {[%clk 0:03:01.5]} 11.
Bd3 {[%clk 0:03:02.4]} 11... Be6 {[%clk 0:03:00.7]} 12. c4 {[%clk 0:03:02.1]}
12... b4 {[%clk 0:02:59.6]} 13. Nc2 {[%clk 0:03:01.5]} 13... Qa5 {[%clk
0:02:53.9]} 14. O-O {[%clk 0:03:00.6]} 14... Bg7 {[%clk 0:02:52.1]} 15. exf5
{[%clk 0:02:39.6]} 15... Bxd5 {[%clk 0:02:51.7]} 16. cxd5 {[%clk 0:02:39.6]}
16... Qxd5 {[%clk 0:02:52]} 17. Qe2 {[%clk 0:02:16.7]} 17... O-O {[%clk
0:02:36.8]} 18. Be4 {[%clk 0:02:09.4]} 18... Qc5 {[%clk 0:02:37]} 19. f6 {[%clk
0:02:01.3]} 19... Bxf6 {[%clk 0:02:29.5]} 20. Qf3 {[%clk 0:01:54]} 20... Bg7
{[%clk 0:02:10.4]} 21. Bxc6 {[%clk 0:01:47.9]} 21... Rac8 {[%clk 0:02:08.8]} 22.
Bb7 {[%clk 0:01:44.9]} 22... Rc7 {[%clk 0:01:49.6]} 23. Be4 {[%clk 0:01:41]}
23... d5 {[%clk 0:01:42.8]} 24. Bf5 {[%clk 0:01:21.1]} 24... Qd6 {[%clk
0:01:41.6]} 25. Ne3 {[%clk 0:01:17.3]} 25... Rd8 {[%clk 0:01:31.9]} 26. Qh3
{[%clk 0:01:13.9]} 26... h6 {[%clk 0:01:27.9]} 27. Rad1 {[%clk 0:01:10.3]} 27...
d4 {[%clk 0:01:28.1]} 28. Be4 {[%clk 0:01:00.8]} 28... Qf6 {[%clk 0:01:02.9]}
29. Nd5 {[%clk 0:00:57.5]} 29... Qc6 {[%clk 0:00:58.4]} 30. Ne7+ {[%clk
0:00:52.3]} 1-0

[Event "*** Titled Tuesday Blitz"]
[Site "Chess.com"]
[Date "2020.10.20"]
[Round "3"]
[White "ambaixador"]
[Black "MoreChessJulia"]
[Result "1-0"]
[WhiteElo "2301"]
[BlackElo "1981"]
[TimeControl "180+1"]
[EndTime "10:27:07 PDT"]
[Termination "ambaixador won by resignation"]

1. Nf3 {[%clk 0:03:00.9]} 1... g6 {[%clk 0:02:57.2]} 2. c4 {[%clk 0:03:01.8]}
2... Bg7 {[%clk 0:02:57]} 3. d4 {[%clk 0:03:01.9]} 3... c5 {[%clk 0:02:56.1]} 4.
g3 {[%clk 0:03:01.8]} 4... d6 {[%clk 0:02:54.5]} 5. Bg2 {[%clk 0:02:57.7]} 5...
Bg4 {[%clk 0:02:52.8]} 6. dxc5 {[%clk 0:02:55.7]} 6... Qa5+ {[%clk 0:02:52]} 7.
Nbd2 {[%clk 0:02:52.9]} 7... Qxc5 {[%clk 0:02:51.3]} 8. O-O {[%clk 0:02:52.7]}
8... Nc6 {[%clk 0:02:50.4]} 9. h3 {[%clk 0:02:50]} 9... Bxf3 {[%clk 0:02:49.3]}
10. Bxf3 {[%clk 0:02:49.7]} 10... Nf6 {[%clk 0:02:45.6]} 11. Rb1 {[%clk
0:02:49.2]} 11... O-O {[%clk 0:02:39.4]} 12. b3 {[%clk 0:02:49]} 12... a5 {[%clk
0:02:38.2]} 13. Ne4 {[%clk 0:02:42.4]} 13... Nxe4 {[%clk 0:02:37.7]} 14. Bxe4
{[%clk 0:02:43.3]} 14... Rae8 {[%clk 0:02:33.4]} 15. Bg2 {[%clk 0:02:22.4]}
15... Qb6 {[%clk 0:02:30.8]} 16. a3 {[%clk 0:02:18.9]} 16... e5 {[%clk
0:02:29.9]} 17. Bd5 {[%clk 0:02:13.1]} 17... Nd4 {[%clk 0:02:28.8]} 18. e3
{[%clk 0:02:08.4]} 18... Ne6 {[%clk 0:02:25.7]} 19. b4 {[%clk 0:02:02.7]} 19...
axb4 {[%clk 0:02:24.3]} 20. axb4 {[%clk 0:02:03.6]} 20... f5 {[%clk 0:02:23.8]}
21. Bd2 {[%clk 0:01:53.9]} 21... Kh8 {[%clk 0:02:21.1]} 22. Bc3 {[%clk
0:01:50.5]} 22... Ng5 {[%clk 0:02:18.6]} 23. Kh2 {[%clk 0:01:48.5]} 23... e4
{[%clk 0:02:16.5]} 24. Bxg7+ {[%clk 0:01:47.2]} 24... Kxg7 {[%clk 0:02:16.2]}
25. Kg2 {[%clk 0:01:42.6]} 25... Nf3 {[%clk 0:02:15.1]} 26. Qc1 {[%clk
0:01:35.6]} 26... Re7 {[%clk 0:02:12.5]} 27. Qc3+ {[%clk 0:01:33.8]} 27... Kh6
{[%clk 0:02:07.9]} 28. Ra1 {[%clk 0:01:31.6]} 28... g5 {[%clk 0:02:03.6]} 29.
Ra2 {[%clk 0:01:19.4]} 29... f4 {[%clk 0:02:02.3]} 30. c5 {[%clk 0:01:02.6]}
30... dxc5 {[%clk 0:01:54.9]} 31. bxc5 {[%clk 0:01:03.5]} 31... Qg6 {[%clk
0:01:54]} 32. Rb2 {[%clk 0:00:58.1]} 32... Rg7 {[%clk 0:01:29.2]} 33. Rb6 {[%clk
0:00:56.6]} 1-0

[Event "*** Titled Tuesday Blitz"]
[Site "Chess.com"]
[Date "2020.10.20"]
[Round "3"]
[White "kai_nov"]
[Black "Natalya_Buksa"]
[Result "1-0"]
[WhiteElo "2257"]
[BlackElo "2549"]
[TimeControl "180+1"]
[EndTime "10:27:11 PDT"]
[Termination "kai_nov won by resignation"]

1. d4 {[%clk 0:03:00.9]} 1... d5 {[%clk 0:03:00.1]} 2. c4 {[%clk 0:03:00.5]}
2... e6 {[%clk 0:03:01]} 3. Nc3 {[%clk 0:03:00.2]} 3... Be7 {[%clk 0:03:01.6]}
4. cxd5 {[%clk 0:02:58.6]} 4... exd5 {[%clk 0:03:02.5]} 5. Bf4 {[%clk 0:02:58]}
5... Nf6 {[%clk 0:03:03]} 6. e3 {[%clk 0:02:57.1]} 6... Bf5 {[%clk 0:03:03.2]}
7. Qb3 {[%clk 0:02:39.6]} 7... Nc6 {[%clk 0:03:03]} 8. Qxb7 {[%clk 0:02:35.4]}
8... Nb4 {[%clk 0:03:02.5]} 9. Bb5+ {[%clk 0:02:31.2]} 9... Kf8 {[%clk
0:03:02.2]} 10. Kd2 {[%clk 0:02:28.5]} 10... a6 {[%clk 0:03:01.6]} 11. Ba4
{[%clk 0:02:26.1]} 11... Nd3 {[%clk 0:02:48]} 12. Bxc7 {[%clk 0:02:25]} 12...
Qc8 {[%clk 0:02:48.4]} 13. Qxc8+ {[%clk 0:02:22.1]} 13... Rxc8 {[%clk
0:02:49.3]} 14. Ba5 {[%clk 0:02:18.7]} 14... Nxb2 {[%clk 0:02:49.3]} 15. Bb3
{[%clk 0:02:14.4]} 15... Nc4+ {[%clk 0:02:46.3]} 16. Bxc4 {[%clk 0:02:12]} 16...
Rxc4 {[%clk 0:02:47.2]} 17. Nf3 {[%clk 0:02:07.9]} 17... g6 {[%clk 0:02:46.4]}
18. Ne5 {[%clk 0:01:56.5]} 18... Rc8 {[%clk 0:02:45.4]} 19. f3 {[%clk 0:01:54]}
19... Kg7 {[%clk 0:02:42]} 20. g4 {[%clk 0:01:53.6]} 20... Be6 {[%clk
0:02:42.5]} 21. Rab1 {[%clk 0:01:51.9]} 21... h5 {[%clk 0:02:42.3]} 22. Rb7
{[%clk 0:01:39.8]} 22... Bd6 {[%clk 0:02:37.4]} 23. g5 {[%clk 0:01:38.3]} 23...
Bxe5 {[%clk 0:02:37.3]} 24. dxe5 {[%clk 0:01:36]} 24... Nd7 {[%clk 0:02:37.6]}
25. Ne2 {[%clk 0:01:20.5]} 25... Rb8 {[%clk 0:02:18.4]} 26. Rhb1 {[%clk
0:01:18.6]} 26... Rxb7 {[%clk 0:02:01.5]} 27. Rxb7 {[%clk 0:01:17.4]} 27... Rc8
{[%clk 0:02:02.4]} 28. Bc3 {[%clk 0:01:08]} 28... Nc5 {[%clk 0:02:00.6]} 29. Ra7
{[%clk 0:01:02.5]} 29... Rb8 {[%clk 0:01:54.7]} 30. Nd4 {[%clk 0:00:53.5]} 30...
Rb1 {[%clk 0:01:55]} 31. Rc7 {[%clk 0:00:47.9]} 31... Rh1 {[%clk 0:01:51.6]} 32.
Rxc5 {[%clk 0:00:47.2]} 32... Rxh2+ {[%clk 0:01:52.1]} 33. Kd3 {[%clk 0:00:47]}
33... h4 {[%clk 0:01:52.5]} 34. Rc7 {[%clk 0:00:42.5]} 34... Bh3 {[%clk
0:01:47.6]} 35. e6 {[%clk 0:00:40.4]} 35... Bf1+ {[%clk 0:01:47.9]} 36. Ne2+
{[%clk 0:00:38.2]} 36... Kg8 {[%clk 0:01:38.4]} 37. exf7+ {[%clk 0:00:36.4]}
37... Kf8 {[%clk 0:01:36.5]} 38. Bb4+ {[%clk 0:00:36.6]} 1-0

[Event "*** Titled Tuesday Blitz"]
[Site "Chess.com"]
[Date "2020.10.20"]
[Round "3"]
[White "Piotrek1979"]
[Black "Sharpchess22"]
[Result "0-1"]
[WhiteElo "2419"]
[BlackElo "2768"]
[TimeControl "180+1"]
[EndTime "10:27:19 PDT"]
[Termination "Sharpchess22 won by resignation"]

1. Nf3 {[%clk 0:03:00.9]} 1... Nf6 {[%clk 0:02:59.4]} 2. g3 {[%clk 0:03:01.7]}
2... d5 {[%clk 0:02:59]} 3. Bg2 {[%clk 0:03:02.6]} 3... g6 {[%clk 0:02:56.8]} 4.
O-O {[%clk 0:03:03.5]} 4... Bg7 {[%clk 0:02:57.2]} 5. d3 {[%clk 0:03:03.4]} 5...
O-O {[%clk 0:02:57]} 6. c4 {[%clk 0:03:01.1]} 6... c6 {[%clk 0:02:55.6]} 7. Nbd2
{[%clk 0:02:56.9]} 7... Re8 {[%clk 0:02:54.5]} 8. Qc2 {[%clk 0:02:56.7]} 8... e5
{[%clk 0:02:54.2]} 9. e4 {[%clk 0:02:54.3]} 9... d4 {[%clk 0:02:48.6]} 10. b4
{[%clk 0:02:52.4]} 10... a5 {[%clk 0:02:46.8]} 11. bxa5 {[%clk 0:02:46]} 11...
Qxa5 {[%clk 0:02:42.4]} 12. Nb3 {[%clk 0:02:29.2]} 12... Qa4 {[%clk 0:02:38.3]}
13. c5 {[%clk 0:02:20.6]} 13... Be6 {[%clk 0:02:34.4]} 14. Nfd2 {[%clk
0:02:19.6]} 14... Na6 {[%clk 0:02:31.8]} 15. a3 {[%clk 0:02:14.2]} 15... Nd7
{[%clk 0:02:28.1]} 16. Bf3 {[%clk 0:01:18.4]} 16... Naxc5 {[%clk 0:02:18.1]} 17.
Bd1 {[%clk 0:01:17.8]} 17... Nxb3 {[%clk 0:02:11.6]} 18. Nxb3 {[%clk 0:01:17.7]}
18... c5 {[%clk 0:02:11.9]} 19. Nd2 {[%clk 0:00:49.1]} 19... Qxc2 {[%clk
0:02:08.1]} 20. Bxc2 {[%clk 0:00:50]} 20... b5 {[%clk 0:02:08.3]} 21. f4 {[%clk
0:00:43.5]} 21... f6 {[%clk 0:02:04.5]} 22. f5 {[%clk 0:00:42.1]} 22... Bf7
{[%clk 0:02:04.5]} 23. fxg6 {[%clk 0:00:39]} 23... hxg6 {[%clk 0:02:04]} 24. Nf3
{[%clk 0:00:23.9]} 24... c4 {[%clk 0:01:59.8]} 25. Bd2 {[%clk 0:00:22.8]} 25...
Nc5 {[%clk 0:01:56.2]} 26. Bb4 {[%clk 0:00:20.6]} 26... cxd3 {[%clk 0:01:51]}
27. Bd1 {[%clk 0:00:13]} 27... Nxe4 {[%clk 0:01:50.4]} 28. Re1 {[%clk
0:00:12.5]} 28... Nc3 {[%clk 0:01:47.3]} 29. Nd2 {[%clk 0:00:07]} 29... f5
{[%clk 0:01:45.8]} 30. Bf3 {[%clk 0:00:06.2]} 30... e4 {[%clk 0:01:45.7]} 31.
Bg2 {[%clk 0:00:06.4]} 31... Rac8 {[%clk 0:01:43.7]} 32. g4 {[%clk 0:00:05.6]}
32... Ne2+ {[%clk 0:01:43.3]} 0-1

[Event "*** Titled Tuesday Blitz"]
[Site "Chess.com"]
[Date "2020.10.20"]
[Round "3"]
[White "Meri-Arabidze"]
[Black "Fandorine"]
[Result "0-1"]
[WhiteElo "2648"]
[BlackElo "2874"]
[TimeControl "180+1"]
[EndTime "10:27:21 PDT"]
[Termination "Fandorine won by resignation"]

1. d4 {[%clk 0:03:00.9]} 1... Nf6 {[%clk 0:03:00.5]} 2. c4 {[%clk 0:03:00.8]}
2... g6 {[%clk 0:03:01.1]} 3. Nc3 {[%clk 0:03:00.7]} 3... Bg7 {[%clk 0:03:01.8]}
4. g3 {[%clk 0:03:01]} 4... O-O {[%clk 0:03:01.6]} 5. Bg2 {[%clk 0:03:01.3]}
5... d6 {[%clk 0:03:00.9]} 6. e4 {[%clk 0:03:01.9]} 6... Nc6 {[%clk 0:02:58.5]}
7. Nge2 {[%clk 0:03:01.4]} 7... e5 {[%clk 0:02:59.1]} 8. d5 {[%clk 0:03:01.7]}
8... Nd4 {[%clk 0:02:59.7]} 9. Be3 {[%clk 0:03:02.1]} 9... Ng4 {[%clk
0:02:57.6]} 10. Nxd4 {[%clk 0:02:43.1]} 10... Nxe3 {[%clk 0:02:56.4]} 11. fxe3
{[%clk 0:02:42.9]} 11... exd4 {[%clk 0:02:56.7]} 12. exd4 {[%clk 0:02:43.8]}
12... Qf6 {[%clk 0:02:57]} 13. Ne2 {[%clk 0:02:34.6]} 13... Bg4 {[%clk
0:02:52.9]} 14. Rf1 {[%clk 0:02:34.3]} 14... Bxe2 {[%clk 0:02:51.3]} 15. Kxe2
{[%clk 0:02:22.6]} 15... Qxd4 {[%clk 0:02:51.5]} 16. Qxd4 {[%clk 0:02:22.1]}
16... Bxd4 {[%clk 0:02:52.4]} 17. Rab1 {[%clk 0:02:18.9]} 17... Kg7 {[%clk
0:02:52.2]} 18. Kd3 {[%clk 0:02:18.4]} 18... Be5 {[%clk 0:02:51.7]} 19. b3
{[%clk 0:02:13.6]} 19... a5 {[%clk 0:02:50.2]} 20. Rbc1 {[%clk 0:02:11]} 20...
h5 {[%clk 0:02:44.1]} 21. c5 {[%clk 0:02:01.3]} 21... h4 {[%clk 0:02:39.9]} 22.
cxd6 {[%clk 0:02:01.2]} 22... Bxd6 {[%clk 0:02:40.8]} 23. gxh4 {[%clk
0:01:57.2]} 23... Rh8 {[%clk 0:02:40.3]} 24. h3 {[%clk 0:01:43]} 24... Rxh4
{[%clk 0:02:38.2]} 25. Rc4 {[%clk 0:01:40]} 25... Re8 {[%clk 0:02:34.9]} 26.
Rfc1 {[%clk 0:01:30]} 26... Re7 {[%clk 0:02:34.4]} 27. e5 {[%clk 0:01:03.3]}
27... Rxc4 {[%clk 0:02:18.3]} 28. exd6 {[%clk 0:01:03]} 28... Rxc1 {[%clk
0:02:18.4]} 29. dxe7 {[%clk 0:01:03.1]} 29... Re1 {[%clk 0:02:18.9]} 30. Be4
{[%clk 0:00:25.7]} 30... Rxe4 {[%clk 0:02:18.5]} 31. Kxe4 {[%clk 0:00:26.4]}
31... f5+ {[%clk 0:02:19]} 32. Ke5 {[%clk 0:00:20.4]} 32... Kf7 {[%clk
0:02:18.8]} 33. d6 {[%clk 0:00:20.8]} 33... cxd6+ {[%clk 0:02:19.7]} 34. Kxd6
{[%clk 0:00:21.6]} 34... Ke8 {[%clk 0:02:20.1]} 35. Ke5 {[%clk 0:00:14.5]} 35...
Kxe7 {[%clk 0:02:19.9]} 36. h4 {[%clk 0:00:15.1]} 36... b5 {[%clk 0:02:12.6]}
37. a3 {[%clk 0:00:12.2]} 37... b4 {[%clk 0:02:08.9]} 38. axb4 {[%clk
0:00:08.1]} 38... axb4 {[%clk 0:02:09.8]} 39. Kd4 {[%clk 0:00:08.2]} 39... Ke6
{[%clk 0:02:06]} 40. Kc4 {[%clk 0:00:08.1]} 40... f4 {[%clk 0:02:05.7]} 0-1

[Event "*** Titled Tuesday Blitz"]
[Site "Chess.com"]
[Date "2020.10.20"]
[Round "3"]
[White "BanjoKazooieN64"]
[Black "davidkalashian"]
[Result "0-1"]
[WhiteElo "2379"]
[BlackElo "2607"]
[TimeControl "180+1"]
[EndTime "10:27:21 PDT"]
[Termination "davidkalashian won by resignation"]

1. e4 {[%clk 0:03:00.9]} 1... c6 {[%clk 0:02:57.2]} 2. Nc3 {[%clk 0:02:56.2]}
2... g6 {[%clk 0:02:58.1]} 3. h4 {[%clk 0:02:54.8]} 3... h5 {[%clk 0:02:56.5]}
4. d4 {[%clk 0:02:54.4]} 4... d5 {[%clk 0:02:55.5]} 5. exd5 {[%clk 0:02:54.2]}
5... cxd5 {[%clk 0:02:54.9]} 6. Nf3 {[%clk 0:02:54.6]} 6... Bg4 {[%clk
0:02:53.6]} 7. Qd3 {[%clk 0:02:52.1]} 7... Nc6 {[%clk 0:02:38]} 8. Ne5 {[%clk
0:02:49.6]} 8... Nxe5 {[%clk 0:02:02.2]} 9. dxe5 {[%clk 0:02:48.3]} 9... e6
{[%clk 0:02:00.9]} 10. Qb5+ {[%clk 0:02:39.7]} 10... Qd7 {[%clk 0:01:59.7]} 11.
Qa5 {[%clk 0:02:40]} 11... Ne7 {[%clk 0:01:24.1]} 12. Bb5 {[%clk 0:02:31.6]}
12... Nc6 {[%clk 0:01:23.1]} 13. Qa4 {[%clk 0:02:31.8]} 13... a6 {[%clk
0:01:15.4]} 14. f3 {[%clk 0:02:27.1]} 14... Bf5 {[%clk 0:01:12.9]} 15. g4 {[%clk
0:02:27.1]} 15... hxg4 {[%clk 0:01:12]} 16. fxg4 {[%clk 0:02:27.2]} 16... Bxc2
{[%clk 0:01:04.6]} 17. Qxc2 {[%clk 0:02:21.8]} 17... axb5 {[%clk 0:01:03]} 18.
Nxb5 {[%clk 0:02:21.5]} 18... Bb4+ {[%clk 0:01:01.3]} 19. Bd2 {[%clk 0:02:21.7]}
19... Bxd2+ {[%clk 0:00:59.4]} 20. Kxd2 {[%clk 0:02:10.4]} 20... O-O {[%clk
0:00:50.8]} 21. h5 {[%clk 0:02:10.8]} 21... Nxe5 {[%clk 0:00:49.2]} 22. Nc3
{[%clk 0:01:51]} 22... Rac8 {[%clk 0:00:42.2]} 23. hxg6 {[%clk 0:01:50.9]} 23...
fxg6 {[%clk 0:00:40.2]} 24. Rae1 {[%clk 0:01:46.5]} 24... Rf2+ {[%clk
0:00:25.6]} 25. Re2 {[%clk 0:01:41.3]} 25... Rxe2+ {[%clk 0:00:25.3]} 26. Kxe2
{[%clk 0:01:41.2]} 26... d4 {[%clk 0:00:23.7]} 27. Qe4 {[%clk 0:01:36.4]} 27...
dxc3 {[%clk 0:00:22.2]} 28. Qxe5 {[%clk 0:01:33.7]} 28... Qd2+ {[%clk
0:00:21.3]} 29. Kf3 {[%clk 0:01:30.5]} 29... Rf8+ {[%clk 0:00:19.4]} 30. Kg3
{[%clk 0:01:26.9]} 30... Qf2+ {[%clk 0:00:18.8]} 31. Kh3 {[%clk 0:01:25.6]}
31... Rf3+ {[%clk 0:00:19.2]} 0-1

[Event "*** Titled Tuesday Blitz"]
[Site "Chess.com"]
[Date "2020.10.20"]
[Round "3"]
[White "HouseOfDurin"]
[Black "AttackSparrow"]
[Result "0-1"]
[WhiteElo "2146"]
[BlackElo "2398"]
[TimeControl "180+1"]
[EndTime "10:27:21 PDT"]
[Termination "AttackSparrow won by checkmate"]

1. d4 {[%clk 0:03:00.9]} 1... Nf6 {[%clk 0:02:59.7]} 2. Bg5 {[%clk 0:03:01.2]}
2... g6 {[%clk 0:02:57]} 3. Bxf6 {[%clk 0:03:00.7]} 3... exf6 {[%clk 0:02:57.9]}
4. c4 {[%clk 0:03:01]} 4... Bg7 {[%clk 0:02:57.2]} 5. Nc3 {[%clk 0:03:01.6]}
5... f5 {[%clk 0:02:57.5]} 6. g3 {[%clk 0:03:02.2]} 6... O-O {[%clk 0:02:57]} 7.
Bg2 {[%clk 0:03:02.6]} 7... c6 {[%clk 0:02:55.5]} 8. e3 {[%clk 0:03:03]} 8... d6
{[%clk 0:02:55.3]} 9. Nge2 {[%clk 0:03:03.4]} 9... Nd7 {[%clk 0:02:54.9]} 10.
O-O {[%clk 0:03:02.7]} 10... Nf6 {[%clk 0:02:54.9]} 11. b4 {[%clk 0:03:01.3]}
11... Re8 {[%clk 0:02:54]} 12. Qd3 {[%clk 0:03:00]} 12... h5 {[%clk 0:02:47.8]}
13. h4 {[%clk 0:02:59.1]} 13... Nd7 {[%clk 0:02:45]} 14. a4 {[%clk 0:02:56.1]}
14... a5 {[%clk 0:02:43.1]} 15. b5 {[%clk 0:02:55.6]} 15... Qc7 {[%clk
0:02:40.4]} 16. Rab1 {[%clk 0:02:46.3]} 16... Nf6 {[%clk 0:02:35.7]} 17. Rb2
{[%clk 0:02:35.6]} 17... c5 {[%clk 0:02:20.9]} 18. Nd5 {[%clk 0:02:34.8]} 18...
Nxd5 {[%clk 0:02:20.5]} 19. Bxd5 {[%clk 0:02:35.3]} 19... Be6 {[%clk 0:02:11.1]}
20. Nc3 {[%clk 0:02:18]} 20... b6 {[%clk 0:02:05.3]} 21. Bxa8 {[%clk 0:02:14.9]}
21... Rxa8 {[%clk 0:02:06.2]} 22. Nd5 {[%clk 0:02:12]} 22... Qd8 {[%clk
0:02:02.4]} 23. Rd2 {[%clk 0:02:05.3]} 23... Rc8 {[%clk 0:02:00.1]} 24. dxc5
{[%clk 0:02:03.4]} 24... Rxc5 {[%clk 0:01:57.7]} 25. Rfd1 {[%clk 0:01:51.8]}
25... g5 {[%clk 0:01:47.5]} 26. hxg5 {[%clk 0:01:50.5]} 26... Bxd5 {[%clk
0:01:47.9]} 27. cxd5 {[%clk 0:01:46.9]} 27... Qxg5 {[%clk 0:01:48.5]} 28. Rc2
{[%clk 0:01:24.2]} 28... Rxc2 {[%clk 0:01:48.5]} 29. Qxc2 {[%clk 0:01:23.5]}
29... h4 {[%clk 0:01:47.7]} 30. Qc8+ {[%clk 0:00:55.7]} 30... Kh7 {[%clk
0:01:46.8]} 31. g4 {[%clk 0:00:17.4]} 31... Qxg4+ {[%clk 0:01:46.4]} 32. Kh2
{[%clk 0:00:16]} 32... Be5+ {[%clk 0:01:38.2]} 33. Kh1 {[%clk 0:00:15.6]} 33...
Qxd1+ {[%clk 0:01:36.1]} 34. Kg2 {[%clk 0:00:16.3]} 34... h3+ {[%clk 0:01:35.7]}
35. Kxh3 {[%clk 0:00:14]} 35... Qg4# {[%clk 0:01:36.6]} 0-1

[Event "*** Titled Tuesday Blitz"]
[Site "Chess.com"]
[Date "2020.10.20"]
[Round "3"]
[White "oogee"]
[Black "Ladislav1969"]
[Result "0-1"]
[WhiteElo "2166"]
[BlackElo "2423"]
[TimeControl "180+1"]
[EndTime "10:27:27 PDT"]
[Termination "Ladislav1969 won by resignation"]

1. d4 {[%clk 0:03:00.1]} 1... Nf6 {[%clk 0:03:00]} 2. c4 {[%clk 0:02:57]} 2...
g6 {[%clk 0:03:00.6]} 3. Nc3 {[%clk 0:02:56.2]} 3... d5 {[%clk 0:03:01.1]} 4.
Nf3 {[%clk 0:02:53.9]} 4... Bg7 {[%clk 0:03:01.2]} 5. Qb3 {[%clk 0:02:53.6]}
5... dxc4 {[%clk 0:03:00.5]} 6. Qxc4 {[%clk 0:02:53.3]} 6... O-O {[%clk
0:03:01.4]} 7. e4 {[%clk 0:02:52.6]} 7... a6 {[%clk 0:03:01.7]} 8. Be2 {[%clk
0:02:39.8]} 8... b5 {[%clk 0:03:01.7]} 9. Qc5 {[%clk 0:02:37.5]} 9... Bb7 {[%clk
0:02:51.8]} 10. e5 {[%clk 0:02:27.7]} 10... Nfd7 {[%clk 0:02:50.3]} 11. Qa3
{[%clk 0:02:26.5]} 11... c5 {[%clk 0:02:50.5]} 12. Be3 {[%clk 0:02:22.8]} 12...
cxd4 {[%clk 0:02:40.5]} 13. Bxd4 {[%clk 0:02:21.7]} 13... Nc6 {[%clk 0:02:39.9]}
14. e6 {[%clk 0:02:17.1]} 14... Nxd4 {[%clk 0:02:28.9]} 15. Nxd4 {[%clk
0:02:15.8]} 15... Bxd4 {[%clk 0:02:28.6]} 16. exd7 {[%clk 0:02:15.5]} 16... Qxd7
{[%clk 0:02:20.2]} 17. O-O {[%clk 0:02:03.4]} 17... e5 {[%clk 0:02:10.2]} 18.
Rad1 {[%clk 0:01:41.2]} 18... Rac8 {[%clk 0:02:03.6]} 19. Qb3 {[%clk 0:01:23.2]}
19... Rfd8 {[%clk 0:01:59.5]} 20. Rd3 {[%clk 0:01:06.7]} 20... Qf5 {[%clk
0:01:53.2]} 21. Rh3 {[%clk 0:00:56.5]} 21... Bxc3 {[%clk 0:01:32.4]} 22. bxc3
{[%clk 0:00:53.7]} 22... Bd5 {[%clk 0:01:32.4]} 23. Qa3 {[%clk 0:00:47.9]} 23...
Qe6 {[%clk 0:01:32]} 24. Qa5 {[%clk 0:00:34.5]} 24... Qc6 {[%clk 0:01:29.4]} 25.
Qb4 {[%clk 0:00:31.9]} 25... Bxg2 {[%clk 0:01:26.1]} 26. Qh4 {[%clk 0:00:13.4]}
26... Bxh3 {[%clk 0:01:24.9]} 27. Qxh3 {[%clk 0:00:12.8]} 27... Qxc3 {[%clk
0:01:23.1]} 28. Bf3 {[%clk 0:00:11.9]} 28... e4 {[%clk 0:01:20.6]} 0-1